fUST/lending_fUST_20250122
["ID","MTS","AMOUNT","RATE_DAILY","PERIOD"]
[349996729,1737557439517,-500.0,0.00019998,3]
[349996731,1737557439527,-500.0,0.00019998,3]
[349996733,1737557439536,-500.0,0.00019998,3]
[349996735,1737557439546,-500.0,0.00019998,3]
[349996737,1737557439558,-500.0,0.00019998,3]
[349996739,1737557439568,-500.0,0.00019998,3]
[349996741,1737557439578,-500.0,0.00019998,3]
[349996743,1737557439587,-500.0,0.00019998,3]
[349996745,1737557439597,-500.0,0.00019998,3]
[349996747,1737557439606,-500.0,0.00019998,3]
[349996749,1737557439616,-500.0,0.00019999,3]
[349996751,1737557439626,-4001.15584977,0.00019999,4]
[349996753,1737557439635,-1000.0,0.0002,20]
[349996755,1737557439644,-3060.61095014,0.0002,3]
[349996757,1737557439654,-151.8587153,0.0002,2]
[349996759,1737557439663,-732.57686654,0.0002,2]
[349996761,1737557439673,-732.57686653,0.0002,2]
[349996763,1737557439683,-732.57686653,0.0002,2]
[349996765,1737557439692,-732.57686653,0.0002,2]
[349996767,1737557439702,-500.0,0.0002003,3]
[349996769,1737557439712,-500.0,0.0002003,3]
[349996771,1737557439722,-500.0,0.0002003,3]
[349996773,1737557439732,-500.0,0.0002003,3]
[349996775,1737557439741,-500.0,0.0002003,3]
[349996777,1737557439753,-500.0,0.0002003,3]
[349996779,1737557439768,-596.42671123,0.0002003,3]
[349996781,1737557439778,-1015.1,0.00020032,3]
[349996783,1737557439791,-1015.1,0.00020033,3]
[349996786,1737557439802,-1015.1,0.00020033,3]
[349996788,1737557439815,-1015.1,0.00020033,3]
[349996790,1737557439825,-1015.1,0.00020033,3]
[349996791,1737557439835,-1015.1,0.00020033,3]
[349996793,1737557439845,-1015.1,0.00020033,3]
[349996795,1737557439855,-1015.1,0.00020033,3]
[349996797,1737557439864,-502.94394431,0.00020034,3]
[349996799,1737557439873,-500.0,0.00020034,3]
[349996801,1737557439883,-500.0,0.00020034,3]
[349996803,1737557439893,-502.4968623,0.00020034,3]
[349996805,1737557439903,-500.0,0.00020034,3]
[349996807,1737557439913,-500.0,0.00020034,3]
[349996809,1737557439922,-501.32781222,0.00020034,3]
[349996811,1737557439932,-334.34463389,0.00020034,3]
[349996813,1737557439942,-500.0,0.00020034,3]
[349996815,1737557439953,-500.0,0.00020034,3]
[349996817,1737557439963,-500.0,0.00020034,3]
[349996819,1737557439973,-503.39640217,0.00020034,3]
[349996821,1737557439983,-500.0,0.00020034,3]
[349996823,1737557439993,-500.0,0.00020034,3]
[349996825,1737557440003,-500.0,0.00020034,3]
[349996827,1737557440013,-500.0,0.00020034,3]
[349996829,1737557440023,-504.03405527,0.00020034,3]
[349996831,1737557440033,-500.0,0.00020034,3]
[349996834,1737557440044,-501.23379196,0.00020034,3]
[349996836,1737557440059,-500.96356511,0.00020034,3]
[349996838,1737557440069,-501.15276701,0.00020034,3]
[349996839,1737557440078,-154.00263797,0.00020034,3]
[349996841,1737557440088,-501.62722106,0.00020034,3]
[349996844,1737557440098,-501.14804767,0.00020034,3]
[349996846,1737557440108,-500.0,0.00020034,3]
[349996848,1737557440118,-500.93405808,0.00020034,3]
[349996850,1737557440128,-501.31960412,0.00020034,3]
[349996852,1737557440137,-501.70891285,0.00020034,3]
[349996854,1737557440147,-500.95372082,0.00020034,3]
[349996856,1737557440158,-500.0,0.00020034,3]
[349996858,1737557440168,-458.65271112,0.00020034,3]
[349996860,1737557440177,-500.0,0.00020034,3]
[349996862,1737557440187,-500.0,0.00020034,3]
[349996864,1737557440197,-548.38212537,0.00020034,3]
[349996866,1737557440207,-532.74088484,0.00020034,3]
[349996868,1737557440218,-500.0,0.00020034,3]
[349996870,1737557440228,-500.0,0.00020034,3]
[349996872,1737557440238,-500.0,0.00020034,3]
[349996874,1737557440248,-500.0,0.00020034,3]
[349996876,1737557440258,-500.0,0.00020034,3]
[349996878,1737557440268,-500.0,0.00020034,3]
[349996880,1737557440278,-838.32,0.00020034,3]
[349996882,1737557440289,-500.0,0.00020034,3]
[349996884,1737557440298,-500.0,0.00020034,3]
[349996886,1737557440311,-500.0,0.00020034,3]
[349996888,1737557440321,-500.0,0.00020034,3]
[349996890,1737557440331,-500.0,0.00020034,3]
[349996892,1737557440341,-500.0,0.00020034,3]
[349996894,1737557440350,-500.0,0.00020034,3]
[349996896,1737557440361,-500.0,0.00020034,3]
[349996898,1737557440371,-18107.59,0.00020034,3]
[349996900,1737557440380,-2458.49,0.00020034,3]
[349996902,1737557440389,-1015.1,0.00020034,3]
[349996904,1737557440399,-1015.1,0.00020034,3]
[349996906,1737557440409,-500.0,0.00020035,3]
[349996908,1737557440419,-6552.58532726,0.00020072,2]
[349996910,1737557440428,-500.0,0.00020131,3]
[349996913,1737557440438,-4405.0,0.00020131,3]
[349996915,1737557440448,-500.0,0.00020131,3]
[349996917,1737557440458,-1956.93,0.00020131,3]
[349996919,1737557440467,-1038.68,0.00020131,3]
[349996921,1737557440477,-500.0,0.00020131,3]
[349996923,1737557440487,-793.94,0.00020131,3]
[349996925,1737557440497,-1315.5,0.00020131,3]
[349996927,1737557440507,-682.6,0.00020131,3]
[349996929,1737557440517,-500.0,0.00020132,3]
[349996931,1737557440526,-500.0,0.00020132,3]
[349996933,1737557440536,-501.62241406,0.00020132,3]
[349996935,1737557440546,-500.0,0.00020132,3]
[349996937,1737557440556,-500.0,0.00020132,3]
[349996939,1737557440565,-500.0,0.00020132,3]
[349996941,1737557440575,-500.0,0.00020132,3]
[349996943,1737557440585,-500.0,0.00020132,3]
[349996945,1737557440595,-500.0,0.00020132,3]
[349996947,1737557440605,-530.4055608,0.00020132,3]
[349996949,1737557440614,-500.0,0.00020132,3]
[349996951,1737557440624,-500.0,0.00020132,3]
[349996953,1737557440633,-500.0,0.00020132,3]
[349996955,1737557440643,-500.0,0.00020132,3]
[349996957,1737557440652,-648.65,0.00020132,3]
[349996959,1737557440662,-500.0,0.00020132,3]
[349996961,1737557440672,-500.0,0.00020132,3]
[349996963,1737557440682,-500.0,0.00020132,3]
[349996965,1737557440692,-561.16111685,0.00020132,3]
[349996967,1737557440701,-352.50764116,0.00020132,3]
[349996969,1737557440711,-500.0,0.00020132,3]
[349996971,1737557440721,-500.0,0.00020132,3]
[349996973,1737557440731,-500.0,0.00020132,3]
[349996975,1737557440741,-500.0,0.00020132,3]
[349996977,1737557440756,-500.0,0.00020132,3]
[349996979,1737557440765,-500.0,0.00020132,3]
[349996981,1737557440775,-500.0,0.00020132,3]
[349996983,1737557440784,-500.0,0.00020132,3]
[349996985,1737557440795,-500.0,0.00020132,3]
[349996987,1737557440806,-365.64326577,0.00020132,3]
[349996989,1737557440815,-500.0,0.00020132,3]
[349996991,1737557440825,-210.83338861,0.00020132,3]
[349996993,1737557440835,-500.0,0.00020132,3]
[349996995,1737557440846,-500.0,0.00020132,3]
[349996997,1737557440856,-500.0,0.00020132,3]
[349996999,1737557440865,-596.47094856,0.00020132,3]
[349997001,1737557440875,-500.0,0.00020132,3]
[349997003,1737557440885,-3494.7,0.00020132,3]
[349997012,1737557440967,-500.0,0.00020132,3]
[349997015,1737557440977,-500.0,0.00020132,3]
[349997017,1737557440987,-500.0,0.00020132,3]
[349997018,1737557440996,-200.0,0.00020132,3]
[349997020,1737557441006,-151.0,0.00020132,2]
[349997021,1737557441016,-500.0,0.00020132,3]
[349997022,1737557441025,-500.0,0.00020132,3]
[349997023,1737557441035,-500.0,0.00020132,3]
[349997024,1737557441045,-500.0,0.00020132,3]
[349997025,1737557441056,-546.14904228,0.00020132,3]
[349997026,1737557441065,-500.0,0.00020132,3]
[349997027,1737557441075,-500.0,0.00020132,3]
[349997028,1737557441084,-505.74869842,0.00020132,3]
[349997029,1737557441093,-500.0,0.00020132,3]
[349997030,1737557441103,-500.0,0.00020132,3]
[349997031,1737557441112,-6365.25,0.00020132,3]
[349997032,1737557441122,-500.0,0.00020132,3]
[349997033,1737557441132,-500.0,0.00020132,3]
[349997034,1737557441141,-505.78145775,0.00020132,3]
[349997035,1737557441151,-500.0,0.00020132,3]
[349997037,1737557441160,-500.0,0.00020132,3]
[349997039,1737557441171,-1015.1,0.00020132,3]
[349997041,1737557441180,-1015.1,0.00020132,3]
[349997043,1737557441189,-1015.1,0.00020132,3]
[349997045,1737557441199,-1015.1,0.00020132,3]
[349997047,1737557441209,-1015.14439689,0.00020132,3]
[349997049,1737557441219,-506.18087667,0.00020132,3]
[349997052,1737557441228,-500.0,0.00020132,3]
[349997055,1737557441237,-500.0,0.00020132,3]
[349997057,1737557441247,-500.0,0.00020132,3]
[349997059,1737557441256,-500.0,0.00020132,3]
[349997061,1737557441265,-267.62945478,0.00020132,3]
[349997063,1737557441274,-204.73359701,0.00020132,3]
[349997065,1737557441283,-505.0820798,0.00020132,3]
[349997067,1737557441293,-500.0,0.00020132,3]
[349997069,1737557441303,-500.0,0.00020132,3]
[349997071,1737557441313,-500.0,0.00020132,3]
[349997073,1737557441322,-602.0605583,0.00020132,3]
[349997075,1737557441332,-500.0,0.00020132,3]
[349997077,1737557441341,-500.0,0.00020132,3]
[349997079,1737557441350,-1043.43,0.00020132,3]
[349997081,1737557441359,-248.26381029,0.00020132,3]
[349997083,1737557441369,-500.0,0.00020132,3]
[349997085,1737557441378,-502.81137741,0.00020132,3]
[349997087,1737557441387,-548.91148274,0.00020132,3]
[349997089,1737557441397,-500.0,0.00020132,3]
[349997091,1737557441406,-500.0,0.00020132,3]
[349997093,1737557441415,-248.29634287,0.00020132,3]
[349997161,1737557442050,-763.062,0.00019798,2]
[349997165,1737557442086,-424.938,0.00019798,2]
[349997177,1737557442177,-257.33635515,0.00020132,3]
[349997179,1737557442187,-500.0,0.00020132,3]
[349997181,1737557442196,-504.52773476,0.00020132,3]
[349997183,1737557442205,-96.59591009,0.00020132,3]
[349997196,1737557442320,-403.40408991,0.00020132,3]
[349997198,1737557442330,-193.36866402,0.00020132,3]
[349997200,1737557442347,-3847.15133598,0.00020132,3]
[349997202,1737557442358,-500.0,0.00020132,3]
[349997204,1737557442367,-500.0,0.00020132,3]
[349997206,1737557442378,-2270.05,0.00020132,3]
[349997208,1737557442388,-500.0,0.00020132,3]
[349997211,1737557442400,-509.0451226,0.00020132,3]
[349997213,1737557442410,-501.99216528,0.00020132,3]
[349997215,1737557442420,-11109.96,0.00020132,3]
[349997216,1737557442430,-500.0,0.00020132,3]
[349997218,1737557442439,-504.00560826,0.00020132,3]
[349997221,1737557442451,-1750.11,0.00020132,3]
[349997223,1737557442461,-500.0,0.00020132,3]
[349997225,1737557442471,-500.0,0.00020132,3]
[349997227,1737557442481,-169.91275967,0.00020132,3]
[349997229,1737557442490,-500.0,0.00020132,3]
[349997231,1737557442500,-500.0,0.00020132,3]
[349997233,1737557442510,-505.50938435,0.00020132,3]
[349997235,1737557442519,-769.85,0.00020132,3]
[349997237,1737557442528,-500.0,0.00020132,3]
[349997239,1737557442538,-500.0,0.00020132,3]
[349997241,1737557442548,-500.98277144,0.00020133,3]
[349997243,1737557442560,-500.0,0.00020133,3]
[349997245,1737557442570,-502.97320282,0.00020133,3]
[349997247,1737557442579,-644.06,0.00020133,3]
[349997249,1737557442588,-500.0,0.00020133,3]
[349997251,1737557442598,-500.0,0.00020133,3]
[349997253,1737557442608,-500.0,0.00020133,3]
[349997255,1737557442618,-1099.92,0.00020133,3]
[349997257,1737557442627,-500.0,0.00020133,3]
[349997259,1737557442637,-500.0,0.00020133,3]
[349997261,1737557442646,-350.08237138,0.00020133,3]
[349997263,1737557442655,-500.0,0.00020133,3]
[349997265,1737557442665,-530.2,0.00020133,3]
[349997267,1737557442675,-430.88427109,0.00020133,3]
[349997269,1737557442685,-500.0,0.00020133,3]
[349997271,1737557442694,-1300.48,0.00020133,3]
[349997273,1737557442704,-511.43,0.00020133,3]
[349997275,1737557442714,-861.81,0.00020133,3]
[349997277,1737557442723,-500.0,0.00020133,3]
[349997279,1737557442732,-500.0,0.00020133,3]
[349997281,1737557442741,-500.0,0.00020133,3]
[349997283,1737557442755,-500.0,0.00020133,3]
[349997285,1737557442764,-500.0,0.00020133,3]
[349997287,1737557442773,-915.51,0.00020133,3]
[349997289,1737557442782,-500.0,0.00020133,3]
[349997291,1737557442793,-500.0,0.00020133,3]
[349997293,1737557442802,-500.0,0.00020133,3]
[349997295,1737557442813,-500.0,0.00020133,3]
[349997297,1737557442822,-571.4,0.00020133,3]
[349997299,1737557442832,-894.15,0.00020133,3]
[349997301,1737557442843,-1196.12,0.00020133,3]
[349997303,1737557442852,-830.86,0.00020133,3]
[349997305,1737557442861,-500.0,0.00020133,3]
[349997307,1737557442872,-500.0,0.00020133,3]
[349997309,1737557442884,-692.43,0.00020133,3]
[349997311,1737557442894,-500.0,0.00020133,3]
[349997313,1737557442906,-500.0,0.00020133,3]
[349997315,1737557442917,-1324.28,0.00020133,3]
[349997317,1737557442927,-500.0,0.00020133,3]
[349997319,1737557442939,-3958.86,0.00020133,3]
[349997321,1737557442949,-648.85534782,0.00020133,3]
[349997324,1737557442961,-500.0,0.00020133,3]
[349997325,1737557442972,-829.77,0.00020133,3]
[349997327,1737557442983,-7661.07,0.00020133,3]
[349997329,1737557442993,-500.0,0.00020133,3]
[349997331,1737557443004,-500.0,0.00020133,3]
[349997333,1737557443015,-1214.67,0.00020133,3]
[349997336,1737557443026,-500.0,0.00020133,3]
[349997338,1737557443036,-500.0,0.00020133,3]
[349997340,1737557443047,-502.87214297,0.00020133,3]
[349997341,1737557443062,-500.0,0.00020133,3]
[349997343,1737557443076,-500.0,0.00020133,3]
[349997345,1737557443086,-500.0,0.00020133,3]
[349997347,1737557443098,-1621.18,0.00020133,3]
[349997349,1737557443110,-500.0,0.00020133,3]
[349997351,1737557443121,-1124.76,0.00020133,3]
[349997353,1737557443132,-4359.39,0.00020133,3]
[349997355,1737557443144,-500.0,0.00020133,3]
[349997357,1737557443154,-500.0,0.00020133,3]
[349997359,1737557443165,-2104.47,0.00020133,3]
[349997361,1737557443177,-500.0,0.00020133,3]
[349997363,1737557443188,-2018.62,0.00020133,3]
[349997365,1737557443198,-500.0,0.00020133,3]
[349997367,1737557443209,-500.0,0.00020133,3]
[349997369,1737557443220,-2220.79,0.00020133,2]
[349997371,1737557443231,-500.0,0.00020133,3]
[349997373,1737557443242,-5659.71,0.00020133,3]
[349997375,1737557443253,-500.0,0.00020133,3]
[349997378,1737557443264,-1128.89,0.00020133,3]
[349997380,1737557443274,-500.0,0.00020133,3]
[349997382,1737557443284,-500.0,0.00020133,3]
[349997384,1737557443294,-569.27,0.00020133,3]
[349997386,1737557443304,-500.0,0.00020133,3]
[349997388,1737557443324,-555.68990576,0.00020133,3]
[349997390,1737557443334,-2229.52,0.00020133,3]
[349997392,1737557443343,-500.0,0.00020133,3]
[349997395,1737557443354,-500.0,0.00020133,3]
[349997397,1737557443363,-956.37,0.00020133,3]
[349997400,1737557443374,-500.0,0.00020133,3]
[349997403,1737557443384,-740.52,0.00020133,3]
[349997405,1737557443394,-500.0,0.00020133,3]
[349997407,1737557443404,-500.0,0.00020133,3]
[349997409,1737557443414,-14379.79548164,0.00020133,3]
[349997471,1737557444141,-430.63829256,0.00019997,3]
[349997761,1737557447078,-0.25030396,0.00019997,3]
[349998530,1737557857721,164.172011,0.00013973,2]
[349998532,1737557907266,1204.42662164,0.00024379,120]
[349998608,1737558632163,-317.73,0.00018731,2]
[349998788,1737558638681,-2245.03346163,0.00018731,2]
[349998789,1737558638691,-184.769503,0.00019178,2]
[349998791,1737558638701,-300.0,0.00019498,2]
[349998793,1737558638710,-500.0,0.00019499,2]
[349998795,1737558638720,-500.0,0.00019499,2]
[349998797,1737558638730,-500.0,0.00019499,2]
[349998799,1737558638739,-500.0,0.00019499,2]
[349998801,1737558638749,-406.44231865,0.00019499,2]
[349998803,1737558638758,-156.32114298,0.00019892,2]
[349998805,1737558638767,-625.71,0.00019991,3]
[349998807,1737558638777,-4055.51814937,0.00019992,2]
[349998809,1737558638786,-500.0,0.00019992,2]
[349998810,1737558638796,-500.0,0.00019992,2]
[349998812,1737558638805,-500.0,0.00019992,2]
[349998815,1737558638815,-406.64053819,0.00019992,2]
[349998816,1737558638824,-500.0,0.00019992,2]
[349998818,1737558638834,-238.98419915,0.00019992,2]
[349998821,1737558638843,-500.0,0.00019992,2]
[349998823,1737558638852,-169.86216654,0.00019992,2]
[349998825,1737558638862,-166.32228986,0.00019992,2]
[349998826,1737558638871,-500.0,0.00019992,2]
[349998829,1737558638881,-500.0,0.00019992,2]
[349998831,1737558638891,-500.0,0.00019992,2]
[349998833,1737558638900,-500.0,0.00019992,2]
[349998835,1737558638909,-500.0,0.00019992,2]
[349998837,1737558638919,-464.66877372,0.00019992,2]
[349998839,1737558638928,-500.0,0.00019992,2]
[349998841,1737558638938,-500.0,0.00019992,2]
[349998843,1737558638948,-500.0,0.00019992,2]
[349998845,1737558638958,-500.0,0.00019992,2]
[349998847,1737558638968,-500.0,0.00019992,2]
[349998849,1737558638978,-452.63356495,0.00019992,2]
[349998851,1737558638988,-500.0,0.00019992,2]
[349998853,1737558638998,-500.0,0.00019992,2]
[349998855,1737558639007,-500.0,0.00019992,2]
[349998857,1737558639018,-500.0,0.00019992,2]
[349998859,1737558639028,-500.0,0.00019992,2]
[349998871,1737558639138,-500.0,0.00019992,2]
[349998873,1737558639149,-500.0,0.00019992,2]
[349998875,1737558639159,-500.0,0.00019992,2]
[349998877,1737558639168,-500.0,0.00019992,2]
[349998879,1737558639178,-3203.47,0.00019992,3]
[349998881,1737558639189,-500.0,0.00019992,2]
[349998883,1737558639199,-500.0,0.00019992,2]
[349998885,1737558639209,-500.0,0.00019992,2]
[349998887,1737558639219,-500.0,0.00019992,2]
[349998889,1737558639228,-250.0,0.00019992,2]
[349998891,1737558639238,-500.0,0.00019992,3]
[349998893,1737558639250,-500.0,0.00019992,3]
[349998895,1737558639259,-500.0,0.00019992,3]
[349998897,1737558639268,-5834.81,0.00019992,3]
[349998899,1737558639279,-956.48,0.00019992,3]
[349998901,1737558639288,-500.0,0.00019992,3]
[349998902,1737558639298,-500.0,0.00019992,3]
[349998903,1737558639307,-500.0,0.00019992,3]
[349998904,1737558639317,-10184.13,0.00019992,3]
[349998905,1737558639326,-4037.92,0.00019992,3]
[349998906,1737558639335,-500.0,0.00019992,3]
[349998907,1737558639344,-3703.81,0.00019992,3]
[349998908,1737558639353,-1793.85,0.00019992,3]
[349998909,1737558639362,-500.0,0.00019992,3]
[349998910,1737558639371,-4896.39,0.00019992,3]
[349998911,1737558639381,-2080.88,0.00019992,3]
[349998912,1737558639390,-500.0,0.00019992,3]
[349998913,1737558639400,-1604.27,0.00019992,3]
[349998914,1737558639409,-634.73,0.00019992,3]
[349998915,1737558639418,-500.0,0.00019992,3]
[349998916,1737558639428,-952.12,0.00019992,3]
[349998917,1737558639437,-500.0,0.00019992,3]
[349998919,1737558639446,-705.7,0.00019992,3]
[349998921,1737558639456,-727.78,0.00019992,3]
[349998923,1737558639465,-500.0,0.00019992,3]
[349998925,1737558639475,-500.0,0.00019992,3]
[349998927,1737558639484,-1213.93,0.00019992,3]
[349998929,1737558639494,-500.0,0.00019992,3]
[349998931,1737558639503,-1113.45,0.00019992,3]
[349998933,1737558639512,-500.0,0.00019992,3]
[349998935,1737558639521,-273.563,0.00019993,2]
[349998937,1737558639531,-500.0,0.00019993,3]
[349998939,1737558639540,-502.76119709,0.00019993,3]
[349998941,1737558639550,-500.0,0.00019993,3]
[349998943,1737558639559,-500.0,0.00019993,3]
[349998946,1737558639569,-594.59,0.00019993,3]
[349998949,1737558639579,-500.0,0.00019993,3]
[349998952,1737558639588,-502.1781277,0.00019993,3]
[349998954,1737558639598,-426.19038534,0.00019993,3]
[349998956,1737558639607,-500.0,0.00019993,3]
[349998958,1737558639617,-500.0,0.00019993,3]
[349998960,1737558639626,-500.0,0.00019993,3]
[349998962,1737558639635,-210.0,0.00019993,3]
[349998964,1737558639645,-500.0,0.00019993,3]
[349998966,1737558639654,-500.0,0.00019993,3]
[349998968,1737558639664,-590.39,0.00019993,3]
[349998970,1737558639673,-500.0,0.00019993,3]
[349998972,1737558639683,-500.0,0.00019993,3]
[349998974,1737558639692,-510.62378845,0.00019993,3]
[349998976,1737558639701,-500.0,0.00019993,3]
[349998978,1737558639711,-500.0,0.00019993,3]
[349998980,1737558639720,-500.0,0.00019993,3]
[349998982,1737558639731,-500.0,0.00019993,3]
[349998984,1737558639741,-500.0,0.00019993,3]
[349998986,1737558639750,-505.67619893,0.00019993,3]
[349998988,1737558639759,-500.0,0.00019993,3]
[349998990,1737558639769,-500.0,0.00019993,3]
[349998992,1737558639778,-500.0,0.00019993,3]
[349998994,1737558639787,-500.0,0.00019993,3]
[349998996,1737558639796,-500.0,0.00019993,3]
[349998998,1737558639806,-500.0,0.00019993,3]
[349999000,1737558639815,-500.0,0.00019993,3]
[349999002,1737558639824,-1008.26,0.00019993,3]
[349999004,1737558639833,-500.0,0.00019993,3]
[349999006,1737558639843,-502.35164064,0.00019993,3]
[349999007,1737558639852,-500.0,0.00019993,3]
[349999008,1737558639861,-500.0,0.00019993,3]
[349999009,1737558639871,-500.0,0.00019993,3]
[349999010,1737558639880,-500.0,0.00019993,3]
[349999011,1737558639889,-200.0,0.00019993,3]
[349999012,1737558639898,-500.0,0.00019993,3]
[349999013,1737558639908,-262.14731574,0.00019993,3]
[349999014,1737558639917,-500.0,0.00019993,3]
[349999015,1737558639927,-500.0,0.00019993,3]
[349999016,1737558639936,-503.13950756,0.00019993,3]
[349999017,1737558639946,-500.0,0.00019993,3]
[349999018,1737558639956,-500.0,0.00019993,3]
[349999019,1737558639965,-500.0,0.00019993,3]
[349999020,1737558639975,-500.0,0.00019993,3]
[349999021,1737558639984,-500.0,0.00019993,3]
[349999022,1737558639994,-500.0,0.00019993,3]
[349999023,1737558640003,-500.0,0.00019993,3]
[349999024,1737558640013,-500.0,0.00019993,3]
[349999025,1737558640022,-500.0,0.00019993,3]
[349999026,1737558640032,-1192.11,0.00019993,3]
[349999027,1737558640041,-500.0,0.00019993,3]
[349999028,1737558640050,-500.0,0.00019993,3]
[349999029,1737558640060,-790.0,0.00019993,3]
[349999031,1737558640070,-500.0,0.00019993,3]
[349999033,1737558640080,-500.0,0.00019993,3]
[349999035,1737558640089,-500.0,0.00019993,3]
[349999037,1737558640101,-170.30925434,0.00019993,3]
[349999039,1737558640111,-500.0,0.00019993,3]
[349999041,1737558640121,-1962.95,0.00019993,3]
[349999043,1737558640131,-500.0,0.00019993,3]
[349999045,1737558640142,-500.0,0.00019993,3]
[349999047,1737558640154,-500.0,0.00019993,3]
[349999049,1737558640165,-453.59203299,0.00019993,3]
[349999051,1737558640177,-500.0,0.00019993,3]
[349999053,1737558640188,-500.0,0.00019993,3]
[349999055,1737558640198,-500.0,0.00019993,3]
[349999057,1737558640207,-500.0,0.00019993,3]
[349999059,1737558640216,-500.0,0.00019993,3]
[349999060,1737558640226,-839.22,0.00019993,3]
[349999061,1737558640235,-500.0,0.00019993,3]
[349999062,1737558640247,-165.75052654,0.00019993,3]
[349999063,1737558640258,-509.92225039,0.00019993,3]
[349999064,1737558640267,-500.0,0.00019993,3]
[349999065,1737558640276,-500.0,0.00019993,3]
[349999066,1737558640285,-500.0,0.00019993,3]
[349999067,1737558640295,-500.0,0.00019993,3]
[349999068,1737558640305,-500.0,0.00019993,3]
[349999069,1737558640314,-500.0,0.00019993,3]
[349999070,1737558640323,-500.0,0.00019993,3]
[349999071,1737558640332,-500.0,0.00019993,3]
[349999072,1737558640341,-500.0,0.00019993,3]
[349999073,1737558640351,-500.0,0.00019993,3]
[349999074,1737558640360,-666.88,0.00019993,3]
[349999075,1737558640369,-500.0,0.00019993,3]
[349999076,1737558640378,-523.78,0.00019993,3]
[349999077,1737558640387,-819.64,0.00019993,3]
[349999078,1737558640397,-500.0,0.00019993,3]
[349999079,1737558640406,-500.0,0.00019993,3]
[349999080,1737558640415,-500.0,0.00019993,3]
[349999081,1737558640425,-500.0,0.00019993,3]
[349999082,1737558640434,-1096.44,0.00019993,3]
[349999083,1737558640445,-761.63,0.00019993,3]
[349999084,1737558640454,-500.0,0.00019993,3]
[349999085,1737558640464,-562.69266736,0.00019993,3]
[349999086,1737558640473,-500.0,0.00019993,3]
[349999087,1737558640482,-500.0,0.00019993,3]
[349999088,1737558640495,-500.0,0.00019993,3]
[349999089,1737558640504,-500.0,0.00019993,3]
[349999091,1737558640514,-500.0,0.00019993,3]
[349999092,1737558640523,-500.0,0.00019993,3]
[349999093,1737558640533,-500.0,0.00019993,3]
[349999094,1737558640542,-500.0,0.00019993,3]
[349999096,1737558640551,-500.0,0.00019993,3]
[349999098,1737558640560,-500.0,0.00019993,3]
[349999100,1737558640570,-500.0,0.00019993,3]
[349999102,1737558640580,-500.0,0.00019993,3]
[349999104,1737558640589,-3628.96,0.00019993,3]
[349999106,1737558640598,-563.66829758,0.00019993,3]
[349999107,1737558640608,-500.0,0.00019993,3]
[349999114,1737558640684,-500.0,0.00019993,3]
[349999116,1737558640703,-2974.4,0.00019993,3]
[349999118,1737558640713,-760.62,0.00019993,3]
[349999119,1737558640723,-636.4,0.00019993,3]
[349999120,1737558640733,-7022.65,0.00019993,3]
[349999121,1737558640747,-500.0,0.00019993,3]
[349999122,1737558640757,-500.0,0.00019993,3]
[349999123,1737558640766,-508.48648097,0.00019993,3]